[Event "GrandPrix_30.05"]
[Site "Chess.com"]
[Date "2020.05.30"]
[Round "7"]
[White "dosto07"]
[Black "AliKa2810"]
[Result "0-1"]
[WhiteElo "1780"]
[BlackElo "2076"]
[TimeControl "600+2"]
[EndTime "11:25:23 PDT"]
[Termination "AliKa2810 won on time"]

1. e4 {[%clk 0:10:01.9]} 1... e5 {[%clk 0:09:59]} 2. Nf3 {[%clk 0:09:53.6]} 2...
Nf6 {[%clk 0:09:59.1]} 3. Nxe5 {[%clk 0:09:51.2]} 3... d6 {[%clk 0:09:59.9]} 4.
Nf3 {[%clk 0:09:52]} 4... Nxe4 {[%clk 0:10:00.8]} 5. d4 {[%clk 0:09:53.3]} 5...
d5 {[%clk 0:10:01.8]} 6. Bd3 {[%clk 0:09:51.5]} 6... Bd6 {[%clk 0:10:02.9]} 7.
O-O {[%clk 0:09:51.7]} 7... O-O {[%clk 0:10:03.4]} 8. c4 {[%clk 0:09:34.2]} 8...
c6 {[%clk 0:10:03.6]} 9. Re1 {[%clk 0:09:32.3]} 9... Bf5 {[%clk 0:10:00.6]} 10.
Qc2 {[%clk 0:07:47.9]} 10... Na6 {[%clk 0:09:58.7]} 11. a3 {[%clk 0:07:43.3]}
11... Bg6 {[%clk 0:09:44.4]} 12. b4 {[%clk 0:06:05.8]} 12... f5 {[%clk
0:09:38.1]} 13. Ne5 {[%clk 0:06:02]} 13... Bxe5 {[%clk 0:08:33.1]} 14. dxe5
{[%clk 0:06:02.6]} 14... Qh4 {[%clk 0:08:27.1]} 15. g3 {[%clk 0:05:33.3]} 15...
Qe7 {[%clk 0:08:27.3]} 16. Nd2 {[%clk 0:05:22.3]} 16... Qxe5 {[%clk 0:08:12.7]}
17. Bb2 {[%clk 0:05:21.2]} 17... Qd6 {[%clk 0:08:11.7]} 18. Rad1 {[%clk
0:05:11.9]} 18... Bh5 {[%clk 0:07:30.2]} 19. Rc1 {[%clk 0:03:24.2]} 19... Rae8
{[%clk 0:07:29]} 20. cxd5 {[%clk 0:03:22.3]} 20... cxd5 {[%clk 0:07:28.9]} 21.
Bd4 {[%clk 0:03:14.6]} 21... Qh6 {[%clk 0:06:43.3]} 22. Nf1 {[%clk 0:02:53.3]}
22... Ng5 {[%clk 0:06:26.9]} 23. Nd2 {[%clk 0:02:34.4]} 23... f4 {[%clk
0:06:15.9]} 24. Bf1 {[%clk 0:01:26.9]} 24... Bg4 {[%clk 0:05:49.9]} 25. h4
{[%clk 0:01:15.4]} 25... fxg3 {[%clk 0:05:17.3]} 26. fxg3 {[%clk 0:01:13.9]}
26... Qd6 {[%clk 0:04:48.2]} 27. Kh2 {[%clk 0:00:31.5]} 27... Nf3+ {[%clk
0:04:43.8]} 28. Nxf3 {[%clk 0:00:29.5]} 28... Bxf3 {[%clk 0:04:45.7]} 29. Qd2
{[%clk 0:00:15.8]} 29... h6 {[%clk 0:04:41.3]} 30. Bb5 {[%clk 0:00:11.4]} 30...
Rxe1 {[%clk 0:04:36.9]} 31. Rxe1 {[%clk 0:00:12.3]} 31... Be4 {[%clk 0:03:57.6]}
32. Rf1 {[%clk 0:00:11.5]} 32... Nc7 {[%clk 0:03:52.7]} 33. Be2 {[%clk
0:00:11.1]} 33... Rxf1 {[%clk 0:03:42.2]} 34. Bxf1 {[%clk 0:00:11]} 34... b6
{[%clk 0:03:43.7]} 35. Qf2 {[%clk 0:00:08.6]} 35... Ne6 {[%clk 0:03:41]} 36. Bh3
{[%clk 0:00:06.9]} 36... Nxd4 {[%clk 0:03:35.7]} 37. Qxd4 {[%clk 0:00:07.5]}
37... Qc6 {[%clk 0:03:30.6]} 38. Bf1 {[%clk 0:00:02.5]} 38... Qc2+ {[%clk
0:03:28]} 39. Kg1 {[%clk 0:00:03.5]} 39... Qb3 {[%clk 0:03:22.8]} 0-1

[Event "GrandPrix_30.05"]
[Site "Chess.com"]
[Date "2020.05.30"]
[Round "7"]
[White "kostasam18"]
[Black "cukus"]
[Result "0-1"]
[WhiteElo "2092"]
[BlackElo "2207"]
[TimeControl "600+2"]
[EndTime "11:25:26 PDT"]
[Termination "cukus won by resignation"]

1. e4 {[%clk 0:07:44.2]} 1... c6 {[%clk 0:09:59.9]} 2. Nc3 {[%clk 0:07:42.3]}
2... d5 {[%clk 0:10:00.7]} 3. Nf3 {[%clk 0:07:42.9]} 3... dxe4 {[%clk
0:10:01.5]} 4. Nxe4 {[%clk 0:07:42.2]} 4... Nf6 {[%clk 0:10:02.7]} 5. Qe2 {[%clk
0:07:41.2]} 5... Nxe4 {[%clk 0:10:03.3]} 6. Qxe4 {[%clk 0:07:43.1]} 6... Qa5
{[%clk 0:10:04.4]} 7. Bd3 {[%clk 0:07:12.7]} 7... Na6 {[%clk 0:10:02.6]} 8. Qe2
{[%clk 0:06:51.1]} 8... Nb4 {[%clk 0:09:54.9]} 9. O-O {[%clk 0:06:03.6]} 9...
Nxd3 {[%clk 0:09:54.7]} 10. Qxd3 {[%clk 0:06:05.5]} 10... Bf5 {[%clk 0:09:55.2]}
11. Qb3 {[%clk 0:06:03]} 11... Qb6 {[%clk 0:09:48.6]} 12. d3 {[%clk 0:06:02.6]}
12... Qxb3 {[%clk 0:09:38.7]} 13. axb3 {[%clk 0:06:02.7]} 13... e6 {[%clk
0:09:39.9]} 14. Be3 {[%clk 0:06:02.6]} 14... a6 {[%clk 0:09:39.9]} 15. Bb6
{[%clk 0:05:59.4]} 15... Bd6 {[%clk 0:09:06.6]} 16. Nh4 {[%clk 0:05:38.9]} 16...
Bg4 {[%clk 0:08:56.7]} 17. h3 {[%clk 0:05:38.9]} 17... Bh5 {[%clk 0:08:56.7]}
18. g4 {[%clk 0:05:36.7]} 18... Bg6 {[%clk 0:08:48.4]} 19. f4 {[%clk 0:05:35.7]}
19... Be7 {[%clk 0:08:27.7]} 20. Nxg6 {[%clk 0:05:31.7]} 20... hxg6 {[%clk
0:08:28.4]} 21. Kg2 {[%clk 0:05:32.3]} 21... Kd7 {[%clk 0:08:18.6]} 22. Ra4
{[%clk 0:05:27.5]} 22... c5 {[%clk 0:08:10.8]} 23. d4 {[%clk 0:05:25.3]} 23...
Kc6 {[%clk 0:07:35.7]} 24. Bxc5 {[%clk 0:05:21]} 24... b5 {[%clk 0:07:28.8]} 25.
Raa1 {[%clk 0:04:51.2]} 25... Bxc5 {[%clk 0:07:28.7]} 26. dxc5 {[%clk
0:04:53.1]} 26... Kxc5 {[%clk 0:07:29.3]} 27. Rad1 {[%clk 0:04:51.6]} 27... Rad8
{[%clk 0:07:28.2]} 28. Kg3 {[%clk 0:04:38]} 28... a5 {[%clk 0:07:06.6]} 29. Rfe1
{[%clk 0:04:33.4]} 29... Kc6 {[%clk 0:06:58.1]} 30. h4 {[%clk 0:04:01.2]} 30...
a4 {[%clk 0:06:57]} 31. b4 {[%clk 0:03:55.6]} 31... Rd5 {[%clk 0:06:37.8]} 32.
Rxd5 {[%clk 0:03:50.2]} 32... Kxd5 {[%clk 0:06:38.3]} 33. g5 {[%clk 0:02:45.8]}
33... Kd6 {[%clk 0:05:33.9]} 34. Re5 {[%clk 0:02:36.2]} 34... Kc6 {[%clk
0:05:16.4]} 35. c4 {[%clk 0:02:07.7]} 35... bxc4 {[%clk 0:05:14.7]} 36. Rc5+
{[%clk 0:01:54.9]} 36... Kb6 {[%clk 0:05:14.1]} 37. Rxc4 {[%clk 0:01:52.9]}
37... Rd8 {[%clk 0:05:11.2]} 38. Rc5 {[%clk 0:01:35.9]} 38... Rd4 {[%clk
0:05:08.4]} 39. Ra5 {[%clk 0:01:31.8]} 39... Rxb4 {[%clk 0:05:08.5]} 40. Ra8
{[%clk 0:01:31.3]} 40... Kc5 {[%clk 0:05:01.6]} 41. Kf3 {[%clk 0:01:26.2]} 41...
Rb3+ {[%clk 0:04:56.5]} 42. Ke4 {[%clk 0:01:23]} 42... Rb4+ {[%clk 0:04:29]} 43.
Ke3 {[%clk 0:01:00.6]} 43... Kc4 {[%clk 0:04:22]} 44. Ra7 {[%clk 0:00:54.1]}
44... Kb3 {[%clk 0:04:13]} 45. Rxf7 {[%clk 0:00:43.6]} 45... Kxb2 {[%clk
0:04:13.3]} 46. Rxg7 {[%clk 0:00:13.7]} 46... a3 {[%clk 0:04:13.4]} 47. Rd7
{[%clk 0:00:12.4]} 47... a2 {[%clk 0:04:12.2]} 48. Rd2+ {[%clk 0:00:12.3]} 48...
Ka3 {[%clk 0:04:07.4]} 49. Rd3+ {[%clk 0:00:11.6]} 49... Rb3 {[%clk 0:04:07.6]}
0-1

[Event "GrandPrix_30.05"]
[Site "Chess.com"]
[Date "2020.05.30"]
[Round "7"]
[White "BlackBoarder"]
[Black "lilleper1"]
[Result "1-0"]
[WhiteElo "2230"]
[BlackElo "2352"]
[TimeControl "600+2"]
[EndTime "11:25:39 PDT"]
[Termination "BlackBoarder won by resignation"]

1. e4 {[%clk 0:09:50.5]} 1... c5 {[%clk 0:10:00.4]} 2. Nf3 {[%clk 0:09:49.2]}
2... d6 {[%clk 0:10:01.4]} 3. c3 {[%clk 0:09:44.1]} 3... Nf6 {[%clk 0:10:01.3]}
4. h3 {[%clk 0:09:43.3]} 4... g6 {[%clk 0:09:44.9]} 5. Bd3 {[%clk 0:09:39.2]}
5... Bg7 {[%clk 0:09:42.9]} 6. Bc2 {[%clk 0:09:39.3]} 6... O-O {[%clk
0:09:39.1]} 7. O-O {[%clk 0:09:39]} 7... Nc6 {[%clk 0:09:39.9]} 8. d4 {[%clk
0:09:38.6]} 8... cxd4 {[%clk 0:09:31]} 9. cxd4 {[%clk 0:09:38.7]} 9... Nb4
{[%clk 0:09:29.9]} 10. Bb3 {[%clk 0:09:39.2]} 10... Bd7 {[%clk 0:07:32.4]} 11.
Nc3 {[%clk 0:09:37.2]} 11... Nc6 {[%clk 0:07:20.3]} 12. Re1 {[%clk 0:09:31.4]}
12... e5 {[%clk 0:07:01.9]} 13. Be3 {[%clk 0:08:52.7]} 13... exd4 {[%clk
0:06:43.4]} 14. Nxd4 {[%clk 0:08:52.3]} 14... Nxd4 {[%clk 0:06:42.6]} 15. Qxd4
{[%clk 0:08:25.7]} 15... Bc6 {[%clk 0:06:36.2]} 16. Qd3 {[%clk 0:08:16.4]} 16...
Re8 {[%clk 0:06:30.1]} 17. Bf4 {[%clk 0:08:06.5]} 17... Qb6 {[%clk 0:05:04.1]}
18. Bxd6 {[%clk 0:07:56.9]} 18... Rad8 {[%clk 0:04:57.4]} 19. e5 {[%clk
0:07:54.3]} 19... Nh5 {[%clk 0:04:50.9]} 20. Nd5 {[%clk 0:06:45.2]} 20... Qa5
{[%clk 0:04:23.9]} 21. Rad1 {[%clk 0:05:47.6]} 21... Rxd6 {[%clk 0:04:12.5]} 22.
Ne7+ {[%clk 0:05:46.5]} 22... Rxe7 {[%clk 0:04:02.4]} 23. Qxd6 {[%clk
0:05:46.3]} 23... Re8 {[%clk 0:03:25]} 24. e6 {[%clk 0:05:39.3]} 24... Kh8
{[%clk 0:02:49.2]} 25. e7 {[%clk 0:05:27.7]} 25... Qg5 {[%clk 0:02:46.2]} 26.
Bd5 {[%clk 0:05:17.6]} 26... Nf4 {[%clk 0:02:19.3]} 27. Bxc6 {[%clk 0:05:15.3]}
27... bxc6 {[%clk 0:02:19.8]} 28. Qxc6 {[%clk 0:05:06.7]} 28... Bf8 {[%clk
0:00:53.8]} 29. h4 {[%clk 0:04:00.1]} 29... Qg4 {[%clk 0:00:38]} 30. exf8=Q+
{[%clk 0:03:07.3]} 30... Rxf8 {[%clk 0:00:38.5]} 31. Qf3 {[%clk 0:02:48.5]}
31... Qxh4 {[%clk 0:00:32.1]} 32. g3 {[%clk 0:02:32.4]} 32... Nh3+ {[%clk
0:00:20.8]} 33. Kg2 {[%clk 0:02:33.1]} 33... Qh6 {[%clk 0:00:20.4]} 34. Rh1
{[%clk 0:02:28.1]} 1-0

[Event "GrandPrix_30.05"]
[Site "Chess.com"]
[Date "2020.05.30"]
[Round "7"]
[White "ZEN-22"]
[Black "HElissalt"]
[Result "0-1"]
[WhiteElo "2116"]
[BlackElo "2088"]
[TimeControl "600+2"]
[EndTime "11:25:41 PDT"]
[Termination "HElissalt won by resignation"]

1. d4 {[%clk 0:09:57.7]} 1... f5 {[%clk 0:09:59.4]} 2. g4 {[%clk 0:09:42.7]}
2... fxg4 {[%clk 0:09:55.9]} 3. h3 {[%clk 0:09:43.5]} 3... g3 {[%clk 0:09:54.1]}
4. fxg3 {[%clk 0:09:42.6]} 4... Nf6 {[%clk 0:09:51.7]} 5. Nc3 {[%clk 0:09:40.9]}
5... d5 {[%clk 0:09:49.8]} 6. Nf3 {[%clk 0:09:42]} 6... Nc6 {[%clk 0:09:49.7]}
7. Bf4 {[%clk 0:09:38.6]} 7... Bf5 {[%clk 0:09:36.5]} 8. Nb5 {[%clk 0:09:35]}
8... Rc8 {[%clk 0:09:33]} 9. g4 {[%clk 0:09:31]} 9... Be4 {[%clk 0:09:32.6]} 10.
Bg2 {[%clk 0:09:28.7]} 10... e6 {[%clk 0:09:29.1]} 11. Qd2 {[%clk 0:09:28.9]}
11... Bb4 {[%clk 0:09:14.8]} 12. c3 {[%clk 0:09:25.3]} 12... Be7 {[%clk
0:09:13.6]} 13. a4 {[%clk 0:09:22.6]} 13... a6 {[%clk 0:09:12.5]} 14. Na3 {[%clk
0:09:22.8]} 14... Bd6 {[%clk 0:09:13.5]} 15. O-O {[%clk 0:09:17.6]} 15... O-O
{[%clk 0:09:13.8]} 16. Ne5 {[%clk 0:09:17.1]} 16... Bxe5 {[%clk 0:08:32.9]} 17.
dxe5 {[%clk 0:09:14.8]} 17... Bxg2 {[%clk 0:08:33.3]} 18. Kxg2 {[%clk
0:09:11.5]} 18... Ne4 {[%clk 0:08:34]} 19. Qe3 {[%clk 0:09:12.2]} 19... Qe7
{[%clk 0:08:01.8]} 20. b4 {[%clk 0:09:04.7]} 20... Rf7 {[%clk 0:07:48.1]} 21.
Nc2 {[%clk 0:09:03.7]} 21... Rcf8 {[%clk 0:07:47.8]} 22. Bh2 {[%clk 0:08:50.5]}
22... Rxf1 {[%clk 0:06:47.2]} 23. Rxf1 {[%clk 0:08:52.4]} 23... Rxf1 {[%clk
0:06:47.9]} 24. Kxf1 {[%clk 0:08:50.8]} 24... Qf7+ {[%clk 0:06:49.3]} 25. Kg2
{[%clk 0:08:48.8]} 25... Qg6 {[%clk 0:06:50.3]} 26. Ne1 {[%clk 0:08:38.8]} 26...
h5 {[%clk 0:06:41.3]} 27. Qf3 {[%clk 0:07:57.6]} 27... hxg4 {[%clk 0:06:02.2]}
28. hxg4 {[%clk 0:07:53.9]} 28... Ne7 {[%clk 0:05:26.2]} 29. Bf4 {[%clk
0:07:50.7]} 29... Nf5 {[%clk 0:05:15.9]} 30. Kf1 {[%clk 0:07:31.5]} 30... Nh6
{[%clk 0:04:24.1]} 31. Bxh6 {[%clk 0:07:21.2]} 31... Qxh6 {[%clk 0:04:24.5]} 32.
Kg2 {[%clk 0:07:06.4]} 32... Qd2 {[%clk 0:04:19.4]} 33. Nd3 {[%clk 0:07:05.4]}
33... Nxc3 {[%clk 0:04:16.4]} 34. Nf4 {[%clk 0:06:34.4]} 34... Qd4 {[%clk
0:03:22]} 35. Nxe6 {[%clk 0:06:22.1]} 35... Qxe5 {[%clk 0:03:18.4]} 36. Nf4
{[%clk 0:03:43.2]} 36... Qe4 {[%clk 0:02:55.9]} 37. Kf1 {[%clk 0:03:39.5]} 37...
Qxf3+ {[%clk 0:02:48.7]} 38. exf3 {[%clk 0:03:40.3]} 38... c6 {[%clk 0:02:50]}
39. Ne6 {[%clk 0:03:35.4]} 39... Nxa4 {[%clk 0:02:49.2]} 40. Nd8 {[%clk
0:03:35]} 40... Nc3 {[%clk 0:02:35.4]} 41. Nxb7 {[%clk 0:03:08.8]} 41... Na2
{[%clk 0:02:35.7]} 42. Ke2 {[%clk 0:03:10.1]} 42... Nxb4 {[%clk 0:02:36.3]} 43.
Ke3 {[%clk 0:03:11.2]} 43... Kf7 {[%clk 0:02:34.9]} 44. Kd4 {[%clk 0:03:12.2]}
44... Ke6 {[%clk 0:02:27.5]} 45. Kc5 {[%clk 0:03:11]} 45... Nd3+ {[%clk
0:02:27.1]} 46. Kxc6 {[%clk 0:03:11.7]} 46... Ne5+ {[%clk 0:02:27.4]} 47. Kb6
{[%clk 0:03:05.4]} 47... Nxf3 {[%clk 0:02:28.3]} 48. Kxa6 {[%clk 0:03:06.3]}
48... d4 {[%clk 0:02:29.5]} 49. Kb5 {[%clk 0:03:06.4]} 49... Kd5 {[%clk
0:02:30.7]} 50. Kb4 {[%clk 0:03:07.1]} 50... Ke4 {[%clk 0:02:28.6]} 51. Nc5+
{[%clk 0:03:03.8]} 51... Ke3 {[%clk 0:02:29.6]} 52. Kb3 {[%clk 0:02:12.6]} 52...
d3 {[%clk 0:02:28.9]} 53. Kc3 {[%clk 0:02:08.2]} 53... d2 {[%clk 0:02:10.7]} 54.
Kc2 {[%clk 0:02:06.9]} 54... Ke2 {[%clk 0:02:10.4]} 0-1

[Event "GrandPrix_30.05"]
[Site "Chess.com"]
[Date "2020.05.30"]
[Round "7"]
[White "tianachess"]
[Black "chessdjw"]
[Result "0-1"]
[WhiteElo "2003"]
[BlackElo "2162"]
[TimeControl "600+2"]
[EndTime "11:25:55 PDT"]
[Termination "chessdjw won by resignation"]

1. d4 {[%clk 0:09:56.7]} 1... Nf6 {[%clk 0:10:00.7]} 2. Nf3 {[%clk 0:09:56.8]}
2... g6 {[%clk 0:10:00.8]} 3. g3 {[%clk 0:09:54.2]} 3... Bg7 {[%clk 0:09:59.9]}
4. Bg2 {[%clk 0:09:54.1]} 4... O-O {[%clk 0:10:00.6]} 5. O-O {[%clk 0:09:51.7]}
5... c6 {[%clk 0:09:58.3]} 6. c4 {[%clk 0:09:41.2]} 6... Ne4 {[%clk 0:09:57.5]}
7. Nc3 {[%clk 0:08:39.7]} 7... Nxc3 {[%clk 0:09:53.5]} 8. bxc3 {[%clk
0:08:39.9]} 8... d6 {[%clk 0:09:49.8]} 9. e4 {[%clk 0:08:04.3]} 9... Nd7 {[%clk
0:09:49.3]} 10. Be3 {[%clk 0:07:54.4]} 10... e5 {[%clk 0:09:44.5]} 11. dxe5
{[%clk 0:05:41.3]} 11... dxe5 {[%clk 0:09:43.4]} 12. c5 {[%clk 0:05:38]} 12...
Re8 {[%clk 0:09:43]} 13. Nd2 {[%clk 0:05:27.1]} 13... Bf8 {[%clk 0:09:39.4]} 14.
Nb3 {[%clk 0:04:53.9]} 14... Qc7 {[%clk 0:09:28.1]} 15. f4 {[%clk 0:04:35.1]}
15... b6 {[%clk 0:09:17.3]} 16. cxb6 {[%clk 0:04:22.5]} 16... axb6 {[%clk
0:09:19.2]} 17. f5 {[%clk 0:04:10]} 17... Ba6 {[%clk 0:09:18.8]} 18. Rf2 {[%clk
0:04:01.6]} 18... Bc4 {[%clk 0:09:08.1]} 19. Nd2 {[%clk 0:03:54.1]} 19... Ba6
{[%clk 0:08:37]} 20. fxg6 {[%clk 0:03:53]} 20... hxg6 {[%clk 0:08:36.5]} 21. Qf3
{[%clk 0:03:48.7]} 21... Nc5 {[%clk 0:08:35.2]} 22. Bf1 {[%clk 0:03:39.5]} 22...
Nd3 {[%clk 0:08:12.7]} 23. Bxd3 {[%clk 0:03:39.4]} 23... Bxd3 {[%clk 0:08:14.6]}
24. Bxb6 {[%clk 0:03:38.3]} 24... Qxb6 {[%clk 0:08:14.7]} 25. Qxd3 {[%clk
0:03:17]} 25... Bc5 {[%clk 0:08:14.1]} 26. Rf1 {[%clk 0:02:53.6]} 26... Rxa2
{[%clk 0:08:02.4]} 27. Kg2 {[%clk 0:02:47.2]} 27... Bxf2 {[%clk 0:08:01.8]} 28.
Rxf2 {[%clk 0:02:47.9]} 28... Rd8 {[%clk 0:07:46.8]} 29. Qc4 {[%clk 0:02:35.9]}
29... Ra7 {[%clk 0:07:38]} 30. Nf3 {[%clk 0:02:32.9]} 30... Re8 {[%clk
0:04:56.8]} 31. Rd2 {[%clk 0:01:37.4]} 31... Kg7 {[%clk 0:04:24.9]} 32. h4
{[%clk 0:01:09.1]} 32... Qb5 {[%clk 0:04:22.8]} 33. Qxb5 {[%clk 0:01:04.9]}
33... cxb5 {[%clk 0:04:24.7]} 34. Rd5 {[%clk 0:01:05.2]} 34... f6 {[%clk
0:04:25.6]} 35. Rxb5 {[%clk 0:01:04.5]} 35... Rc8 {[%clk 0:04:25.9]} 36. Rb3
{[%clk 0:00:53]} 36... Rac7 {[%clk 0:04:23.2]} 37. g4 {[%clk 0:00:42.4]} 37...
Rxc3 {[%clk 0:04:23.7]} 38. Rb7+ {[%clk 0:00:32.4]} 38... R8c7 {[%clk
0:04:24.5]} 39. Rb6 {[%clk 0:00:32.7]} 39... Re3 {[%clk 0:04:08.3]} 40. g5
{[%clk 0:00:25.4]} 40... Rc2+ {[%clk 0:03:17.9]} 41. Kg3 {[%clk 0:00:25]} 41...
fxg5 {[%clk 0:03:19.3]} 42. hxg5 {[%clk 0:00:19.4]} 42... Rcc3 {[%clk
0:03:13.4]} 43. Rf6 {[%clk 0:00:19.5]} 43... Rxe4 {[%clk 0:03:10.5]} 44. Kf2
{[%clk 0:00:17]} 44... Rf4 {[%clk 0:03:03.3]} 45. Rxf4 {[%clk 0:00:16.3]} 45...
exf4 {[%clk 0:03:05.2]} 0-1

[Event "GrandPrix_30.05"]
[Site "Chess.com"]
[Date "2020.05.30"]
[Round "7"]
[White "Martin_Petrov2000"]
[Black "GMMarcinDziuba"]
[Result "1-0"]
[WhiteElo "2360"]
[BlackElo "2513"]
[TimeControl "600+2"]
[EndTime "11:25:58 PDT"]
[Termination "Martin_Petrov2000 won by resignation"]

1. e4 {[%clk 0:10:01.9]} 1... c5 {[%clk 0:10:00.2]} 2. Nf3 {[%clk 0:10:01.7]}
2... d6 {[%clk 0:10:01.2]} 3. d4 {[%clk 0:10:01.1]} 3... cxd4 {[%clk 0:10:03.1]}
4. Nxd4 {[%clk 0:10:02.4]} 4... Nf6 {[%clk 0:10:04.3]} 5. Nc3 {[%clk 0:10:02.8]}
5... a6 {[%clk 0:10:05.5]} 6. Be3 {[%clk 0:10:02.8]} 6... e5 {[%clk 0:10:04.9]}
7. Nb3 {[%clk 0:10:03.7]} 7... Be7 {[%clk 0:10:05.5]} 8. h3 {[%clk 0:10:04.4]}
8... b5 {[%clk 0:10:01.8]} 9. Qd2 {[%clk 0:09:13.6]} 9... Bb7 {[%clk 0:10:01.3]}
10. O-O-O {[%clk 0:09:05.3]} 10... Nxe4 {[%clk 0:09:33.8]} 11. Nxe4 {[%clk
0:09:07.2]} 11... Bxe4 {[%clk 0:09:35.3]} 12. f4 {[%clk 0:08:59.7]} 12... Nc6
{[%clk 0:09:32.3]} 13. Bd3 {[%clk 0:08:56.4]} 13... Bxd3 {[%clk 0:09:31.8]} 14.
Qxd3 {[%clk 0:08:58.3]} 14... O-O {[%clk 0:09:31.9]} 15. Kb1 {[%clk 0:08:47.3]}
15... Qc7 {[%clk 0:09:27]} 16. h4 {[%clk 0:08:05.6]} 16... Rad8 {[%clk
0:02:32.9]} 17. h5 {[%clk 0:07:43.7]} 17... h6 {[%clk 0:01:57.5]} 18. g4 {[%clk
0:07:27.5]} 18... exf4 {[%clk 0:01:56.4]} 19. Bxf4 {[%clk 0:07:27.8]} 19... Ne5
{[%clk 0:01:57.6]} 20. Qd2 {[%clk 0:06:51]} 20... Nf3 {[%clk 0:01:50.1]} 21. Qd3
{[%clk 0:06:44.8]} 21... Ne5 {[%clk 0:01:47.8]} 22. Qd2 {[%clk 0:06:42.4]} 22...
Nc4 {[%clk 0:01:48.6]} 23. Qc1 {[%clk 0:06:41.5]} 23... Bf6 {[%clk 0:01:49]} 24.
Nd4 {[%clk 0:06:41.7]} 24... Bxd4 {[%clk 0:01:20.3]} 25. Rxd4 {[%clk 0:06:40.4]}
25... f6 {[%clk 0:01:04.8]} 26. Rhd1 {[%clk 0:06:13.6]} 26... Qc6 {[%clk
0:01:03.6]} 27. Rd5 {[%clk 0:05:32.4]} 27... Rfe8 {[%clk 0:00:58.9]} 28. Bxh6
{[%clk 0:05:08.4]} 28... gxh6 {[%clk 0:00:57.2]} 29. Qxh6 {[%clk 0:05:09.1]}
29... Qxd5 {[%clk 0:00:49.1]} 30. Qg6+ {[%clk 0:04:52.7]} 30... Kf8 {[%clk
0:00:50]} 31. Qh6+ {[%clk 0:04:53.1]} 31... Kf7 {[%clk 0:00:47.9]} 32. Qg6+
{[%clk 0:04:52.2]} 32... Ke6 {[%clk 0:00:40.5]} 33. Rxd5 {[%clk 0:04:45.1]}
33... Kxd5 {[%clk 0:00:42.4]} 34. a3 {[%clk 0:04:46.6]} 34... Ne5 {[%clk
0:00:26.4]} 35. Qxf6 {[%clk 0:04:39.8]} 35... Rf8 {[%clk 0:00:23.8]} 36. Qg5
{[%clk 0:04:40.8]} 36... Kc6 {[%clk 0:00:20.5]} 37. h6 {[%clk 0:04:35.3]} 37...
Rg8 {[%clk 0:00:21.6]} 38. Qe7 {[%clk 0:04:35.8]} 38... Nxg4 {[%clk 0:00:19.4]}
39. h7 {[%clk 0:04:35.2]} 39... Rge8 {[%clk 0:00:19.7]} 40. Qa7 {[%clk
0:04:31.3]} 40... Ne5 {[%clk 0:00:19]} 41. Qxa6+ {[%clk 0:04:31.3]} 41... Kc5
{[%clk 0:00:20.4]} 42. b4+ {[%clk 0:04:24.2]} 42... Kc4 {[%clk 0:00:21]} 43. Kb2
{[%clk 0:04:19.9]} 43... Rd7 {[%clk 0:00:20.7]} 44. a4 {[%clk 0:04:16.6]} 44...
Kd5 {[%clk 0:00:16.1]} 45. Qxb5+ {[%clk 0:04:15.5]} 45... Ke6 {[%clk 0:00:17]}
46. c4 {[%clk 0:04:07.3]} 46... Rxh7 {[%clk 0:00:17.7]} 47. Qxe8+ {[%clk
0:04:07.8]} 47... Re7 {[%clk 0:00:17.1]} 48. Qc8+ {[%clk 0:04:07.3]} 48... Kf6
{[%clk 0:00:16.4]} 49. Kb3 {[%clk 0:04:06.3]} 49... Nf3 {[%clk 0:00:15.9]} 50.
Qf8+ {[%clk 0:04:04.3]} 50... Rf7 {[%clk 0:00:17.1]} 51. Qxd6+ {[%clk
0:04:04.9]} 51... Kf5 {[%clk 0:00:18.5]} 52. a5 {[%clk 0:04:01.5]} 52... Ne5
{[%clk 0:00:15.4]} 53. a6 {[%clk 0:04:01.2]} 53... Ke4 {[%clk 0:00:15.3]} 54.
Qd5+ {[%clk 0:03:59.3]} 54... Kf4 {[%clk 0:00:15.3]} 55. a7 {[%clk 0:03:58.9]}
1-0

[Event "GrandPrix_30.05"]
[Site "Chess.com"]
[Date "2020.05.30"]
[Round "7"]
[White "Sam_ChessMood"]
[Black "Matibar"]
[Result "1/2-1/2"]
[WhiteElo "2578"]
[BlackElo "2602"]
[TimeControl "600+2"]
[EndTime "11:26:11 PDT"]
[Termination "Game drawn by agreement"]

1. e4 {[%clk 0:10:01.9]} 1... e5 {[%clk 0:09:48.2]} 2. Nf3 {[%clk 0:10:02.7]}
2... Nc6 {[%clk 0:09:49.5]} 3. Bb5 {[%clk 0:10:03.5]} 3... a6 {[%clk 0:09:50.1]}
4. Ba4 {[%clk 0:10:04.7]} 4... Nf6 {[%clk 0:09:51.1]} 5. O-O {[%clk 0:10:05.8]}
5... b5 {[%clk 0:09:51.6]} 6. Bb3 {[%clk 0:10:06.4]} 6... Bb7 {[%clk 0:09:52.9]}
7. d3 {[%clk 0:10:03.7]} 7... Be7 {[%clk 0:09:49.2]} 8. c4 {[%clk 0:10:02.2]}
8... d6 {[%clk 0:09:28.6]} 9. Nc3 {[%clk 0:09:45.3]} 9... Nd4 {[%clk 0:08:11.7]}
10. Nxd4 {[%clk 0:07:41.5]} 10... exd4 {[%clk 0:08:10.4]} 11. Nd5 {[%clk
0:07:42.3]} 11... Nxd5 {[%clk 0:07:22]} 12. cxd5 {[%clk 0:07:41.5]} 12... O-O
{[%clk 0:07:20.7]} 13. f4 {[%clk 0:06:30.6]} 13... f5 {[%clk 0:07:10.2]} 14. e5
{[%clk 0:06:26.7]} 14... Kh8 {[%clk 0:07:11.1]} 15. e6 {[%clk 0:06:21.7]} 15...
c5 {[%clk 0:06:40.1]} 16. dxc6 {[%clk 0:06:17]} 16... Bxc6 {[%clk 0:06:40.9]}
17. Bd2 {[%clk 0:06:18]} 17... Qb6 {[%clk 0:06:37.9]} 18. Rc1 {[%clk 0:06:07.9]}
18... Rac8 {[%clk 0:06:34.6]} 19. Qe2 {[%clk 0:05:55.6]} 19... a5 {[%clk
0:06:28.6]} 20. a3 {[%clk 0:05:37.7]} 20... a4 {[%clk 0:06:23.8]} 21. Ba2 {[%clk
0:05:38.5]} 21... Qb7 {[%clk 0:06:14.8]} 22. Qf2 {[%clk 0:03:52.8]} 22... Bd5
{[%clk 0:06:13.2]} 23. Bxd5 {[%clk 0:03:36.7]} 23... Qxd5 {[%clk 0:06:15.1]} 24.
Qe2 {[%clk 0:03:32.8]} 24... g6 {[%clk 0:05:46]} 25. Bb4 {[%clk 0:03:27.8]}
25... Kg7 {[%clk 0:05:44.4]} 26. Rce1 {[%clk 0:02:50.8]} 26... Rfe8 {[%clk
0:05:27.1]} 27. Qf3 {[%clk 0:02:01.8]} 27... Qxf3 {[%clk 0:05:00]} 28. Rxf3
{[%clk 0:02:03.7]} 28... Rc2 {[%clk 0:05:01.1]} 29. Rf2 {[%clk 0:02:00.8]} 29...
Rec8 {[%clk 0:05:02]} 30. Ree2 {[%clk 0:01:58.6]} 30... Rc1+ {[%clk 0:04:15.5]}
31. Rf1 {[%clk 0:01:59]} 31... Rxf1+ {[%clk 0:04:01.8]} 32. Kxf1 {[%clk
0:01:59.8]} 32... Rc1+ {[%clk 0:04:03.7]} 33. Kf2 {[%clk 0:01:22.3]} 33... Kf6
{[%clk 0:03:50.1]} 34. Re1 {[%clk 0:00:50.8]} 34... Rxe1 {[%clk 0:03:48]} 35.
Kxe1 {[%clk 0:00:51.6]} 35... Kxe6 {[%clk 0:03:49.9]} 36. Ke2 {[%clk 0:00:51.3]}
36... Bd8 {[%clk 0:03:43.7]} 37. Kf3 {[%clk 0:00:48.1]} 37... Bb6 {[%clk
0:03:44.1]} 38. h4 {[%clk 0:00:44]} 38... Bc5 {[%clk 0:03:42.8]} 39. g3 {[%clk
0:00:45]} 39... Kf6 {[%clk 0:03:38.2]} 40. Kg2 {[%clk 0:00:45.3]} 40... Kg7
{[%clk 0:03:39.1]} 41. Kh3 {[%clk 0:00:25.6]} 41... Kh6 {[%clk 0:03:40.2]} 42.
g4 {[%clk 0:00:24]} 42... Kg7 {[%clk 0:03:29.1]} 43. g5 {[%clk 0:00:23.4]} 43...
Bxb4 {[%clk 0:02:40.2]} 44. axb4 {[%clk 0:00:23.7]} 44... Kf7 {[%clk 0:02:41.5]}
45. Kg3 {[%clk 0:00:24.3]} 1/2-1/2